fUSD/lending_fUSD_20251225
["ID","MTS","AMOUNT","RATE_DAILY","PERIOD"]
[399697903,1766626239039,-151.0,0.00012709,2]
[399697904,1766626239049,-151.0,0.00012709,2]
[399697905,1766626239059,-151.0,0.00012709,2]
[399697906,1766626239069,-151.0,0.00012709,2]
[399697907,1766626239079,-151.0,0.00012709,2]
[399697908,1766626239089,-151.0,0.00012709,2]
[399697909,1766626239099,-151.0,0.00012709,2]
[399697910,1766626239108,-151.0,0.00012709,2]
[399697911,1766626239117,-151.0,0.00012709,2]
[399697912,1766626239127,-151.0,0.00012709,2]
[399697913,1766626239137,-151.0,0.00012709,2]
[399697914,1766626239147,-151.0,0.00012709,2]
[399697915,1766626239157,-151.0,0.00012709,2]
[399697916,1766626239167,-1084.66,0.00012715,2]
[399697917,1766626239176,-500.0,0.00012715,2]
[399697918,1766626239186,-2857.1494,0.00012724,2]
[399697919,1766626239196,-13513.3123,0.00012724,2]
[399697920,1766626239206,-1000.0,0.00012724,2]
[399697921,1766626239217,-2654.7,0.00012734,2]
[399697922,1766626239230,-1084.66,0.00012989,2]
[399697923,1766626239241,-500.0,0.00012989,2]
[399697924,1766626239256,-4413.83022652,0.00013,2]
[399697925,1766626239276,-5329.97051899,0.0001305,2]
[399697926,1766626239285,-1349.0,0.00013064,2]
[399697927,1766626239296,-514.49,0.00013081,2]
[399697928,1766626239305,-32787.05688094,0.00013106,2]
[399697929,1766626239316,-1297.01324196,0.00013141,2]
[399697930,1766626239325,-598.0,0.00013163,2]
[399697931,1766626239339,-1215.09,0.00013215,2]
[399697932,1766626239352,-1084.66,0.00013263,2]
[399697933,1766626239362,-500.0,0.00013263,2]
[399697934,1766626239371,-1859.0,0.00013399,2]
[399697935,1766626239380,-1092.0,0.00013425,2]
[399697936,1766626239390,-1084.66,0.00013537,2]
[399697937,1766626239399,-500.0,0.00013537,2]
[399697938,1766626239409,-32787.05688094,0.00013587,2]
[399697939,1766626239419,-255.0,0.00013604,2]
[399697940,1766626239428,-883.0,0.00013628,2]
[399697941,1766626239437,-526.0,0.0001363,2]
[399697942,1766626239446,-500.0,0.00013698,2]
[399697943,1766626239456,-500.0,0.00013698,2]
[399697944,1766626239466,-500.0,0.00013698,2]
[399697945,1766626239475,-500.0,0.00013698,2]
[399697946,1766626239485,-500.0,0.00013698,2]
[399697947,1766626239494,-270.41631183,0.00013698,2]
[399697948,1766626239504,-500.0,0.00013698,2]
[399697949,1766626239515,-500.0,0.00013698,2]
[399697950,1766626239524,-500.0,0.00013698,2]
[399697951,1766626239534,-500.0,0.00013698,2]
[399697952,1766626239544,-533.10990625,0.00013698,2]
[399697953,1766626239554,-500.0,0.00013698,2]
[399697954,1766626239563,-500.0,0.00013698,2]
[399697955,1766626239572,-500.0,0.00013698,2]
[399697956,1766626239582,-500.0,0.00013698,2]
[399697957,1766626239591,-500.0,0.00013698,2]
[399697958,1766626239601,-500.0,0.00013698,2]
[399697959,1766626239611,-500.0,0.00013698,2]
[399697960,1766626239629,-500.0,0.00013698,2]
[399697961,1766626239641,-500.0,0.00013698,2]
[399697962,1766626239650,-500.0,0.00013698,2]
[399697963,1766626239659,-500.0,0.00013698,2]
[399697964,1766626239668,-500.0,0.00013698,2]
[399697965,1766626239678,-500.0,0.00013698,2]
[399697966,1766626239687,-500.0,0.00013698,2]
[399697967,1766626239696,-500.0,0.00013698,2]
[399697968,1766626239706,-639.67,0.00013698,2]
[399697969,1766626239716,-639.67,0.00013698,2]
[399697970,1766626239725,-500.0,0.00013698,2]
[399697971,1766626239734,-500.0,0.00013698,2]
[399697972,1766626239743,-500.0,0.00013698,2]
[399697973,1766626239753,-500.0,0.00013698,2]
[399697974,1766626239763,-500.0,0.00013698,2]
[399697975,1766626239773,-500.0,0.00013698,2]
[399697976,1766626239783,-500.0,0.00013698,2]
[399697977,1766626239792,-512.32849253,0.00013698,2]
[399697978,1766626239801,-500.0,0.00013698,2]
[399697979,1766626239811,-500.0,0.00013698,2]
[399697980,1766626239821,-500.0,0.00013698,2]
[399697981,1766626239830,-500.0,0.00013698,2]
[399697982,1766626239839,-500.0,0.00013698,2]
[399697983,1766626239848,-500.0,0.00013698,2]
[399697984,1766626239857,-500.0,0.00013698,2]
[399697985,1766626239866,-500.0,0.00013698,2]
[399697986,1766626239875,-500.0,0.00013698,2]
[399697987,1766626239885,-286.12837513,0.00013698,2]
[399697988,1766626239894,-500.0,0.00013698,2]
[399697989,1766626239903,-500.0,0.00013698,2]
[399697990,1766626239913,-500.0,0.00013698,2]
[399697991,1766626239923,-1000.0,0.00013699,2]
[399697992,1766626239932,-612.93,0.00013699,2]
[399697993,1766626239942,-500.0,0.00013699,2]
[399697994,1766626239952,-500.0,0.00013699,2]
[399697995,1766626239961,-500.0,0.00013699,2]
[399697996,1766626239971,-500.0,0.00013699,2]
[399697997,1766626239980,-500.0,0.00013699,2]
[399697998,1766626239989,-500.0,0.00013699,2]
[399697999,1766626239998,-500.0,0.00013699,2]
[399698000,1766626240008,-500.0,0.00013699,2]
[399698001,1766626240017,-500.0,0.00013699,2]
[399698002,1766626240027,-500.0,0.00013699,2]
[399698003,1766626240036,-500.0,0.00013699,2]
[399698004,1766626240045,-500.0,0.00013699,2]
[399698005,1766626240055,-500.0,0.00013699,2]
[399698006,1766626240065,-500.0,0.00013699,2]
[399698007,1766626240074,-500.0,0.00013699,2]
[399698008,1766626240085,-265.11068678,0.00013699,2]
[399698009,1766626240094,-500.0,0.00013699,2]
[399698010,1766626240104,-420.0,0.00013732,2]
[399698011,1766626240113,-420.0,0.00013732,2]
[399698012,1766626240122,-420.0,0.00013732,2]
[399698013,1766626240132,-903.68301625,0.00013742,2]
[399698014,1766626240141,-195.0,0.00013767,2]
[399698015,1766626240151,-1680.0,0.00013767,2]
[399698016,1766626240160,-1297.01324196,0.00013767,2]
[399698017,1766626240170,-195.0,0.00013768,2]
[399698018,1766626240179,-300.0,0.00013768,2]
[399698019,1766626240189,-1084.66,0.00013811,2]
[399698020,1766626240198,-500.0,0.00013811,2]
[399698021,1766626240208,-1680.0,0.0001384,2]
[399698022,1766626240217,-195.0,0.00013875,2]
[399698023,1766626240229,-206.95572497,0.00013875,2]
[399698024,1766626240239,-195.0,0.00013875,2]
[399698025,1766626240249,-250.0,0.00013875,2]
[399698026,1766626240259,-300.0,0.00013875,2]
[399698027,1766626240269,-600.0,0.00013875,2]
[399698028,1766626240279,-600.0,0.00013875,2]
[399698029,1766626240289,-600.0,0.00013875,2]
[399698030,1766626240298,-600.0,0.00013875,2]
[399698031,1766626240309,-600.0,0.00013875,2]
[399698032,1766626240318,-300.0,0.00013875,2]
[399698033,1766626240328,-300.0,0.00013875,2]
[399698034,1766626240337,-300.0,0.00013875,2]
[399698035,1766626240346,-300.0,0.00013875,2]
[399698036,1766626240356,-300.0,0.00013875,2]
[399698037,1766626240365,-195.0,0.00013875,2]
[399698038,1766626240375,-300.0,0.00013875,2]
[399698040,1766626240385,-200.78240058,0.0001398,2]
[399698042,1766626240394,-99523.95842475,0.0001399,2]
[399698043,1766626240404,-32787.05688094,0.00014069,2]
[399698044,1766626240413,-1084.66,0.00014085,2]
[399698045,1766626240422,-500.0,0.00014085,2]
[399698046,1766626240432,-356.70875582,0.00014095,2]
[399698047,1766626240442,-1084.66,0.00014359,2]
[399698048,1766626240451,-525.59385387,0.00014359,2]
[399698049,1766626240461,-10281.60890255,0.0001439,2]
[399698050,1766626240470,-1297.01324196,0.00014394,2]
[399698052,1766626240479,-151.0,0.00014492,2]
[399698054,1766626240488,-10000.0,0.0001451,2]
[399698056,1766626240498,-600.0,0.00014523,2]
[399698058,1766626240507,-351.76,0.00014523,2]
[399698060,1766626240516,-32787.05688094,0.00014551,2]
[399698061,1766626240525,-1084.66,0.00014633,2]
[399698062,1766626240535,-6993.99062568,0.00014748,2]
[399698063,1766626240544,-433.0,0.00014793,2]
[399698064,1766626240554,-1084.66,0.00014907,2]
[399698065,1766626240563,-903.68301625,0.00014967,2]
[399698066,1766626240572,-1297.01324196,0.0001502,2]
[399698067,1766626240581,-32787.05688094,0.00015032,2]
[399698068,1766626240590,-587.0,0.00015067,2]
[399698069,1766626240599,-587.0,0.00015067,2]
[399698070,1766626240609,-331.0,0.00015067,2]
[399698071,1766626240618,-2351.0,0.00015144,2]
[399698072,1766626240627,-1084.66,0.00015181,2]
[399698073,1766626240636,-1350.0,0.00015184,2]
[399698074,1766626240646,-204.70174746,0.00015294,2]
[399698075,1766626240656,-500.0,0.00015305,2]
[399698076,1766626240666,-639.67,0.00015364,2]
[399698077,1766626240675,-168.77155811,0.00015364,2]
[399698078,1766626240685,-512.34192822,0.00015364,2]
[399698079,1766626240695,-1084.66,0.00015455,2]
[399698080,1766626240704,-32787.05688094,0.00015514,2]
[399698081,1766626240714,-1297.01324196,0.00015647,2]
[399698082,1766626240723,-1084.68507006,0.00015729,2]
[399698083,1766626240732,-459.8,0.00015972,2]
[399698084,1766626240742,-177.62,0.00015972,2]
[399698085,1766626240752,-32787.05688094,0.00015996,2]
[399698086,1766626240762,-6772.25268696,0.00016,2]
[399698087,1766626240771,-215539.11468127,0.00016,2]
[399698088,1766626240781,-599.55417067,0.00016,2]
[399698089,1766626240791,-736.0,0.0001607,2]
[399698090,1766626240800,-5000.00040728,0.000162,5]
[399698091,1766626240809,-1297.01324196,0.00016273,2]
[399698092,1766626240818,-1098.0,0.00016321,2]
[399698093,1766626240828,-228.0,0.000164,2]
[399698094,1766626240838,-319.0,0.000164,2]
[399698095,1766626240847,-182.0,0.000164,2]
[399698096,1766626240857,-184.11963138,0.000164,2]
[399698097,1766626240867,-500.0,0.00016438,2]
[399698098,1766626240877,-500.0,0.00016438,2]
[399698099,1766626240887,-500.0,0.00016438,2]
[399698100,1766626240896,-500.0,0.00016438,2]
[399698101,1766626240906,-500.0,0.00016438,2]
[399698102,1766626240917,-500.0,0.00016438,2]
[399698103,1766626240928,-500.0,0.00016438,2]
[399698104,1766626240949,-500.0,0.00016438,2]
[399698105,1766626240961,-500.0,0.00016438,2]
[399698106,1766626240971,-500.0,0.00016438,2]
[399698107,1766626240980,-500.0,0.00016438,2]
[399698108,1766626240990,-500.0,0.00016438,2]
[399698109,1766626241000,-500.0,0.00016438,2]
[399698110,1766626241010,-500.0,0.00016438,2]
[399698111,1766626241019,-500.0,0.00016438,2]
[399698112,1766626241029,-500.0,0.00016438,2]
[399698113,1766626241038,-544.37285735,0.00016438,2]
[399698114,1766626241048,-500.0,0.00016438,2]
[399698115,1766626241057,-500.0,0.00016438,2]
[399698116,1766626241067,-500.0,0.00016438,2]
[399698117,1766626241077,-500.0,0.00016438,2]
[399698118,1766626241086,-500.0,0.00016438,2]
[399698119,1766626241096,-600.0,0.00016438,2]
[399698120,1766626241107,-800.0,0.00016438,2]
[399698121,1766626241116,-32787.05688094,0.00016477,2]
[399698122,1766626241127,-823.0,0.00016531,2]
[399698123,1766626241137,-823.0,0.00016531,2]
[399698124,1766626241147,-3292.0,0.00016658,2]
[399698125,1766626241157,-197.26789526,0.00016822,2]
[399698126,1766626241167,-197.26789526,0.00016861,2]
[399698127,1766626241177,-250.0,0.00016861,2]
[399698128,1766626241187,-197.26789526,0.000169,2]
[399698129,1766626241196,-1297.01324196,0.000169,2]
[399698130,1766626241206,-193.82133822,0.000169,2]
[399698131,1766626241215,-287.1261654,0.000169,2]
[399698132,1766626241225,-20279.48179131,0.000169,2]
[399698133,1766626241237,-989.52724003,0.000169,2]
[399698134,1766626241246,-23332.38,0.00016922,2]
[399698135,1766626241256,-5159.29,0.00016922,2]
[399698136,1766626241266,-9999.99,0.00016922,2]
[399698137,1766626241276,-32787.05688094,0.00016959,2]
[399698138,1766626241286,-500.0,0.00016973,2]
[399698139,1766626241295,-500.0,0.00016973,2]
[399698140,1766626241307,-500.0,0.00016973,2]
[399698141,1766626241319,-500.0,0.00016973,2]
[399698142,1766626241328,-500.0,0.00016973,2]
[399698143,1766626241338,-500.0,0.00016973,2]
[399698144,1766626241347,-500.0,0.00016973,2]
[399698145,1766626241357,-162.11626746,0.00016973,2]
[399698146,1766626241367,-500.0,0.00016973,2]
[399698147,1766626241376,-500.0,0.00016973,2]
[399698148,1766626241385,-537.88170422,0.00016973,2]
[399698149,1766626241395,-500.0,0.00016973,2]
[399698150,1766626241405,-500.0,0.00016973,2]
[399698151,1766626241414,-500.0,0.00016973,2]
[399698152,1766626241424,-500.0,0.00016973,2]
[399698153,1766626241434,-500.0,0.00016973,2]
[399698154,1766626241444,-254.14415415,0.00016973,2]
[399698155,1766626241454,-500.0,0.00016973,2]
[399698156,1766626241464,-318.15085489,0.00016973,2]
[399698157,1766626241474,-153.1504851,0.00016973,2]
[399698158,1766626241483,-310.0,0.00016986,2]
[399698159,1766626241493,-200.78240058,0.0001699,2]
[399698160,1766626241503,-300.0,0.00016999,2]
[399698161,1766626241512,-666.0,0.00016999,2]
[399698162,1766626241522,-671.0702352,0.00016999,2]
[399698163,1766626241531,-300.0,0.00016999,2]
[399698164,1766626241541,-419.69716074,0.00016999,2]
[399698165,1766626241551,-250.0,0.00017,2]
[399698166,1766626241560,-5262201.30322183,0.00017,2]
[399698167,1766626241576,-418702.62451419,0.00017,2]
[399698168,1766626242280,-346.26755611,0.000169,2]
[399698169,1766626242290,-346.26755608,0.00016936,2]
[399698170,1766626242299,-346.26755608,0.00016972,2]
[399698171,1766626242311,-4134.66524948,0.00017,2]
[399698172,1766626242323,-820798.43348416,0.00017,2]
[399698173,1766626242338,-1241.40035232,0.00017,2]
[399698174,1766626242355,-438.645,0.00017,2]
[399698175,1766626242415,-2645750.79297592,0.00017,2]
[399698176,1766626242425,-1484940.44441067,0.00017,2]
[399698177,1766626242436,-114982.39257341,0.00017,2]
[399698178,1766626243254,-151.0,0.00014708,2]
[399698179,1766626243264,-165.47033406,0.00017,2]
[399698180,1766626243277,-2078.97815733,0.00017,2]
[399698190,1766626246092,-400.23705092,0.00012615,2]
[399698191,1766626246108,-102.80528822,0.00012615,2]
[399698192,1766626246118,-227.73586324,0.00013698,2]
[399698193,1766626246212,-272.26413676,0.00013698,2]
[399698194,1766626246222,-168.15086324,0.00013698,2]
[399698195,1766626246291,-331.84913676,0.00013698,2]
[399698196,1766626246314,-337.94246392,0.00013698,2]
[399698201,1766626292727,3122.455,0.00012274,2]
[399698202,1766626292766,261.605,0.00012274,2]
[399698203,1766626302410,856.11,0.00021918,30]
[399698204,1766626385230,-300.0,0.00012513,2]
[399698205,1766626385261,-150.0,0.00012513,2]
[399698206,1766626385288,-300.0,0.00012513,2]
[399698207,1766626388862,1200.0,0.00012513,2]
[399698209,1766626441324,300.0,0.00012513,2]
[399698210,1766626475881,-500.0,0.00012513,2]
[399698211,1766626475911,-500.0,0.00012513,2]
[399698212,1766626475944,-725.31372264,0.00012513,2]
[399698213,1766626475971,-283.08509983,0.00012513,2]
[399698214,1766626476000,-500.0,0.00012513,2]
[399698215,1766626476033,-725.31372264,0.00012513,2]
[399698216,1766626476061,-500.0,0.00012513,2]
[399698217,1766626476089,-501.2083211,0.00012513,2]
[399698218,1766626476118,-725.31372264,0.00012513,2]
[399698219,1766626476393,-725.31372264,0.00012513,2]
[399698220,1766626476422,-500.0,0.00012513,2]
[399698221,1766626476454,-200.5323999,0.00012513,2]
[399698222,1766626476485,-725.31372264,0.00012513,2]
[399698223,1766626476517,-725.31372264,0.00012513,2]
[399698224,1766626476545,-500.0,0.00012513,2]
[399698225,1766626476574,-248.47047196,0.00012513,2]
[399698226,1766626476605,-725.31372264,0.00012513,2]
[399698227,1766626476634,-574.18075252,0.00012513,2]
[399698228,1766626477554,-151.13297012,0.00012513,2]
[399698229,1766626477588,-500.0,0.00012513,2]
[399698230,1766626477623,-725.31372264,0.00012513,2]
[399698231,1766626477654,-725.31372264,0.00012513,2]
[399698232,1766626477682,-450.18313191,0.00012513,2]
[399698233,1766626477713,-725.31372264,0.00012513,2]
[399698234,1766626477744,-725.31372264,0.00012513,2]
[399698235,1766626477775,-725.31372264,0.00012513,2]
[399698236,1766626477860,-725.31372264,0.00012513,2]
[399698237,1766626477890,-725.31372264,0.00012513,2]
[399698238,1766626477925,-725.31372264,0.00012513,2]
[399698239,1766626477956,-725.31372264,0.00012513,2]
[399698240,1766626477988,-725.31372264,0.00012513,2]
[399698241,1766626478019,-725.31372264,0.00012513,2]
[399698242,1766626478049,-570.93160568,0.00012513,2]
[399698243,1766626478191,-154.38211696,0.00012513,2]
[399698244,1766626478224,-725.31372264,0.00012513,2]
[399698245,1766626478257,-725.31372264,0.00012513,2]
[399698246,1766626478289,-725.31372264,0.00012513,2]
[399698247,1766626478323,-725.31372264,0.00012513,2]
[399698248,1766626478360,-725.31372264,0.00012513,2]
[399698249,1766626478394,-725.31372264,0.00012513,2]
[399698250,1766626478427,-262.16737176,0.00012513,2]
[399698251,1766626478538,-463.14635088,0.00012513,2]
[399698252,1766626478567,-301.17926703,0.00012513,2]
[399698253,1766626479506,-424.13445561,0.00012513,2]
[399698254,1766626479537,-725.31372264,0.00012513,2]
[399698255,1766626479566,-725.31372264,0.00012513,2]
[399698256,1766626479597,-725.31372264,0.00012513,2]
[399698257,1766626479628,-725.31372264,0.00012513,2]
[399698258,1766626479900,-725.31372264,0.00012513,2]
[399698259,1766626479932,-725.31372264,0.00012513,2]
[399698260,1766626479978,-725.31372264,0.00012513,2]
[399698261,1766626480010,-725.31372264,0.00012513,2]
[399698262,1766626480040,-725.31372264,0.00012513,2]
[399698263,1766626480071,-725.31372264,0.00012513,2]
[399698264,1766626480102,-725.31372264,0.00012513,2]
[399698265,1766626480132,-725.31372264,0.00012513,2]
[399698266,1766626480163,-570.93160568,0.00012513,2]
[399698267,1766626480757,-154.38211696,0.00012513,2]
[399698268,1766626480782,-33.16215175,0.00012513,2]
[399698269,1766626481940,-692.15157089,0.00012513,2]
[399698270,1766626481971,-725.31372264,0.00012513,2]
[399698271,1766626482003,-725.31372264,0.00012513,2]
[399698272,1766626482035,-725.31372264,0.00012513,2]
[399698273,1766626482067,-725.31372264,0.00012513,2]
[399698274,1766626482098,-725.31372264,0.00012513,2]
[399698275,1766626482129,-637.25590918,0.00012513,2]
[399698276,1766626482208,-88.05781346,0.00012513,2]
[399698277,1766626482241,-725.31372264,0.00012513,2]
[399698278,1766626482274,-725.31372264,0.00012513,2]
[399698279,1766626482307,-725.31372264,0.00012513,2]
[399698280,1766626482337,-725.31372264,0.00012513,2]
[399698281,1766626482367,-725.31372264,0.00012513,2]
[399698282,1766626482397,-725.31372264,0.00012513,2]
[399698283,1766626482427,-394.81597876,0.00012513,2]
[399698284,1766626482612,-330.49774388,0.00012513,2]
[399698285,1766626482643,-725.31372264,0.00012513,2]
[399698286,1766626482674,-725.31372264,0.00012513,2]
[399698287,1766626482703,-725.31372264,0.00012513,2]
[399698288,1766626482734,-725.31372264,0.00012513,2]
[399698289,1766626482765,-725.31372264,0.00012513,2]
[399698290,1766626482797,-725.31372264,0.00012513,2]
[399698291,1766626482898,-725.31372264,0.00012513,2]
[399698292,1766626544257,290.7071223,0.00022,30]
[399698293,1766626571208,-500.0,0.00012514,2]
[399698294,1766626571233,-300.0,0.00012514,2]
[399698295,1766626571258,-93.10500385,0.00012515,2]
[399698296,1766626611915,-220.45658712,0.00012424,2]
[399698297,1766626613779,-160.79287812,0.00012424,2]
[399698298,1766626616680,-350.2803979,0.00012424,2]
[399698299,1766626618919,-492.43574919,0.00012424,2]
[399698300,1766626621762,-288.90533939,0.00012424,2]
[399698301,1766626623268,-320.87010147,0.00012424,2]
[399698302,1766626624927,-169.30485527,0.00012424,2]
[399698303,1766626628763,-297.26,0.00012424,2]
[399698304,1766626720170,2632.27,0.00012206,2]
[399698305,1766626730702,7367.74,0.00012206,2]
[399698306,1766626730724,4452.36,0.00012206,2]
[399698307,1766626740223,166.66,0.00012329,2]
[399698308,1766626741178,-243.12070844,0.00012414,2]
[399698309,1766626741201,-9.58333254,0.00012424,2]
[399698310,1766626742822,-190.110759,0.00012424,2]
[399698311,1766626742851,-268.5879,0.00012424,2]
[399698312,1766626742879,-2449.8674,0.00012424,2]
[399698313,1766626742908,-300.0,0.00012439,2]
[399698314,1766626742939,-166.66,0.00012452,2]
[399698315,1766626742967,-1500.0,0.00012454,2]
[399698316,1766626748741,-2500.0,0.00012424,2]
[399698317,1766626748799,-1200.0,0.00012514,2]
[399698318,1766626748837,-300.0,0.00012514,2]
[399698319,1766626748866,-150.0,0.00012514,2]
[399698320,1766626748895,-141.92522937,0.00012515,2]
[399698321,1766626748925,-250.0,0.00012515,2]
[399698322,1766626748953,-300.0,0.00012515,2]
[399698323,1766626751766,-690.12276909,0.00012515,2]
[399698324,1766626751795,-3300.66078967,0.00012515,2]
[399698325,1766626793844,-370.60413809,0.00012424,2]
[399698326,1766626797036,-252.51769995,0.00012424,2]
[399698327,1766626799164,-300.0,0.00012424,2]
[399698328,1766626801642,-362.80827377,0.00012424,2]
[399698329,1766626804460,-252.0,0.00012424,2]
[399698330,1766626804500,-281.64737125,0.00012424,2]
[399698331,1766626805782,-160.16794915,0.00012424,2]
[399698332,1766626808912,-283.63239317,0.00012424,2]
[399698333,1766626811675,-16.36760683,0.00012424,2]
[399698334,1766626811702,-655.18876883,0.00012424,2]
[399698335,1766626813106,-200.0,0.00012424,2]
[399698336,1766626814773,7496.29,0.00012171,2]
[399698337,1766626815784,-188.27973739,0.00012414,2]
[399698338,1766626818656,-311.72026261,0.00012414,2]
[399698339,1766626818682,-74.99558796,0.00012424,2]
[399698340,1766626820798,-339.16664607,0.00012424,2]
[399698341,1766626823860,-204.72190576,0.00012424,2]
[399698342,1766626825776,-234.68775036,0.00012424,2]
[399698343,1766626828770,-277.73185187,0.00012424,2]
[399698344,1766626834330,-176.67626731,0.00012424,2]
[399698345,1766626836816,-202.62648438,0.00012424,2]
[399698346,1766626838779,-302.00611386,0.00012424,2]
[399698347,1766626840752,-217.60455001,0.00012424,2]
[399698348,1766626842919,-288.90533939,0.00012424,2]
[399698349,1766626844447,-155.77863173,0.00012424,2]
[399698350,1766626846359,-282.2031428,0.00012424,2]
[399698351,1766626848296,-256.92497032,0.00012424,2]
[399698352,1766626850388,-251.74322123,0.00012424,2]
[399698353,1766626854099,-186.58389147,0.00012424,2]
[399698354,1766626856103,-201.17741891,0.00012424,2]
[399698355,1766626858157,-257.3312713,0.00012424,2]
[399698356,1766626897466,-201.71822738,0.00012423,2]
[399698357,1766626899873,5302.68,0.00012116,2]
[399698358,1766626900512,-263.79702715,0.00012423,2]
[399698359,1766626902368,-166.66,0.00012423,2]
[399698360,1766626905016,-237.73537449,0.00012423,2]
[399698361,1766626908263,-443.64321213,0.00012423,2]
[399698362,1766626911029,-211.09466061,0.00012423,2]
[399698363,1766626914692,-242.26357046,0.00012423,2]
[399698364,1766626917058,-392.75244996,0.00012423,2]
[399698365,1766626918571,-264.55332962,0.00012423,2]
[399698366,1766626922470,-224.38656483,0.00012423,2]
[399698367,1766626924124,-209.742693,0.00012423,2]
[399698368,1766626927315,-279.48633976,0.00012423,2]
[399698369,1766626928863,-235.57626546,0.00012423,2]
[399698370,1766626932445,-233.0445807,0.00012423,2]
[399698371,1766626934455,-291.47211502,0.00012423,2]
[399698372,1766626937527,-203.31438943,0.00012423,2]
[399698373,1766626937549,-136.98622764,0.00012423,2]
[399698374,1766626940197,-293.45686372,0.00012423,2]
[399698375,1766626944548,-300.0,0.00012423,2]
[399698376,1766626946026,-201.75917607,0.00012423,2]
[399698377,1766626947585,-267.90004059,0.00012423,2]
[399698378,1766626949007,-289.06394144,0.00012423,2]
[399698379,1766626949118,7110.7,0.000226,120]
[399698380,1766626949647,4697.33,0.00012062,2]
[399698381,1766626949671,4185.4,0.00012062,2]
[399698382,1766626950512,-275.6584545,0.00012423,2]
[399698383,1766626952962,-357.49856696,0.00012423,2]
[399698384,1766626954307,-291.77566627,0.00012423,2]
[399698385,1766626956461,-177.91307375,0.00012423,2]
[399698386,1766626958097,-407.60886303,0.00012423,2]
[399698387,1766626958270,2.22926449,0.00012062,2]
[399698388,1766626958292,4671.3156102,0.00012062,2]
[399698389,1766626958314,4671.3156102,0.00012062,2]
[399698390,1766626958335,2648.67951511,0.00012062,2]
[399698391,1766626961302,-209.75409672,0.00012423,2]
[399698392,1766626964474,-179.66,0.00012423,2]
[399698393,1766626969477,-420.34,0.00012423,2]
[399698394,1766626973264,-314.78023879,0.00012423,2]
[399698395,1766626975400,-201.93541913,0.00012423,2]
[399698396,1766626976993,-341.99827021,0.00012423,2]
[399698397,1766626978557,-174.77566897,0.00012423,2]
[399698398,1766626983518,-158.00172979,0.00012423,2]
[399698399,1766626985038,-253.351569,0.00012423,2]
[399698400,1766626987059,-196.2926478,0.00012423,2]
[399698401,1766626991060,-223.2732872,0.00012423,2]
[399698402,1766626994217,-403.50834349,0.00012423,2]
[399698403,1766626996824,-164.9476641,0.00012423,2]
[399698404,1766627000922,-232.21514264,0.00012423,2]
[399698405,1766627002859,-93.38594819,0.00012423,2]
[399698406,1766627002882,-142.16795932,0.00012423,2]
[399698407,1766627005211,-156.74029659,0.00012423,2]
[399698408,1766627007362,-1.09174409,0.00012423,2]
[399698409,1766627007387,-250.0,0.00012424,2]
[399698410,1766627007411,-48.90825591,0.00012424,2]
[399698411,1766627008933,-149.25639832,0.00012424,2]
[399698412,1766627008956,-65.00330509,0.00012424,2]
[399698413,1766627011082,-300.0,0.00012424,2]
[399698414,1766627031871,-166.66,0.00012344,2]
[399698415,1766627036276,-166.16011591,0.00012344,2]
[399698416,1766627038544,-0.96771152,0.00012344,2]
[399698417,1766627038573,-287.1549602,0.00012383,2]
[399698419,1766627060111,-46.63286721,0.00012383,2]
[399698420,1766627060135,-333.78782741,0.00012422,2]
[399698421,1766627060158,-289.37090606,0.00012424,2]
[399698422,1766627091878,-165.8939225,0.00012362,2]
[399698423,1766627096413,-226.81699666,0.00012362,2]
[399698426,1766627167922,-175.38518518,0.00012361,2]